[Event "Betsys MČR v online bleskovém šachu 2021"]
[Site "Chess.com"]
[Date "2021.04.17"]
[Round "8"]
[White "stripe122"]
[Black "Klapuch05"]
[Result "1-0"]
[WhiteElo "1793"]
[BlackElo "1561"]
[TimeControl "180+1"]
[EndTime "10:22:33 PDT"]
[Termination "Uživatel stripe122 zvítězil matem"]

1. e4 {[%clk 0:03:00.9]} 1... c5 {[%clk 0:02:58.1]} 2. Nf3 {[%clk 0:02:57.9]}
2... d6 {[%clk 0:02:57.9]} 3. d4 {[%clk 0:02:57.7]} 3... cxd4 {[%clk 0:02:58.1]}
4. Nxd4 {[%clk 0:02:58.6]} 4... Nf6 {[%clk 0:02:58.2]} 5. Nc3 {[%clk 0:02:58]}
5... g6 {[%clk 0:02:58]} 6. Be3 {[%clk 0:02:56]} 6... Bg7 {[%clk 0:02:57.2]} 7.
Be2 {[%clk 0:02:56.6]} 7... O-O {[%clk 0:02:54.1]} 8. O-O {[%clk 0:02:57]} 8...
Nc6 {[%clk 0:02:51.3]} 9. Nb3 {[%clk 0:02:56.6]} 9... Be6 {[%clk 0:02:43.4]} 10.
f4 {[%clk 0:02:54.6]} 10... d5 {[%clk 0:02:40.5]} 11. e5 {[%clk 0:02:49.5]}
11... Nd7 {[%clk 0:02:23.2]} 12. Nxd5 {[%clk 0:02:42.1]} 12... Bxd5 {[%clk
0:02:20.8]} 13. Qxd5 {[%clk 0:02:41.3]} 13... Rc8 {[%clk 0:01:40.2]} 14. Rad1
{[%clk 0:02:24.2]} 14... Nb6 {[%clk 0:01:30.2]} 15. Qf3 {[%clk 0:02:21.9]} 15...
Qc7 {[%clk 0:01:27.9]} 16. c3 {[%clk 0:02:16.5]} 16... Rfd8 {[%clk 0:01:25.8]}
17. Nd4 {[%clk 0:02:11.5]} 17... Nxd4 {[%clk 0:01:23.7]} 18. Rxd4 {[%clk
0:02:10.3]} 18... Rxd4 {[%clk 0:01:18.1]} 19. Bxd4 {[%clk 0:02:08.7]} 19... e6
{[%clk 0:01:16.6]} 20. Rd1 {[%clk 0:02:04.5]} 20... Nd5 {[%clk 0:01:12.5]} 21.
Qg3 {[%clk 0:01:48.8]} 21... Bh6 {[%clk 0:01:10.1]} 22. Rf1 {[%clk 0:01:45.5]}
22... Bf8 {[%clk 0:01:05.2]} 23. Bf3 {[%clk 0:01:43.2]} 23... Rd8 {[%clk
0:00:58.6]} 24. Bxd5 {[%clk 0:01:35.8]} 24... Rxd5 {[%clk 0:00:58.3]} 25. Qe3
{[%clk 0:01:34.9]} 25... b6 {[%clk 0:00:56.4]} 26. Rf2 {[%clk 0:01:18.8]} 26...
Bc5 {[%clk 0:00:53.5]} 27. Rd2 {[%clk 0:01:16.5]} 27... Bxd4 {[%clk 0:00:52.3]}
28. Rxd4 {[%clk 0:01:15.1]} 28... Qc5 {[%clk 0:00:47.5]} 29. Kf2 {[%clk
0:01:06.2]} 29... Rxd4 {[%clk 0:00:47.2]} 30. Qxd4 {[%clk 0:01:05]} 30... Qb5
{[%clk 0:00:42.4]} 31. b3 {[%clk 0:00:57.3]} 31... Qa5 {[%clk 0:00:40.9]} 32. a4
{[%clk 0:00:54.8]} 32... Qa6 {[%clk 0:00:38.1]} 33. Ke3 {[%clk 0:00:52.7]} 33...
Qb7 {[%clk 0:00:35.4]} 34. b4 {[%clk 0:00:44.4]} 34... Qxg2 {[%clk 0:00:35.2]}
35. Qd2 {[%clk 0:00:40]} 35... Qg1+ {[%clk 0:00:32.4]} 36. Qf2 {[%clk
0:00:38.7]} 36... Qc1+ {[%clk 0:00:32.4]} 37. Qd2 {[%clk 0:00:37.6]} 37... Qg1+
{[%clk 0:00:30.4]} 38. Ke4 {[%clk 0:00:35.3]} 38... Qa1 {[%clk 0:00:26.7]} 39.
Qc2 {[%clk 0:00:29.5]} 39... Qe1+ {[%clk 0:00:25.6]} 40. Kd4 {[%clk 0:00:28.9]}
40... Qg1+ {[%clk 0:00:22.5]} 41. Kc4 {[%clk 0:00:27.4]} 41... Qf1+ {[%clk
0:00:20.7]} 42. Qd3 {[%clk 0:00:19.6]} 42... Qxf4+ {[%clk 0:00:21.1]} 43. Qd4
{[%clk 0:00:16.4]} 43... Qxh2 {[%clk 0:00:20.9]} 44. Qd8+ {[%clk 0:00:14.4]}
44... Kg7 {[%clk 0:00:21.4]} 45. Qf6+ {[%clk 0:00:13.6]} 45... Kh6 {[%clk
0:00:21.5]} 46. Kb5 {[%clk 0:00:09.7]} 46... Qe2+ {[%clk 0:00:20.1]} 47. Kc6
{[%clk 0:00:08.2]} 47... Qc4+ {[%clk 0:00:19.4]} 48. Kd7 {[%clk 0:00:07]} 48...
Qd5+ {[%clk 0:00:18.3]} 49. Ke8 {[%clk 0:00:05.7]} 49... Qa8+ {[%clk 0:00:18.3]}
50. Kxf7 {[%clk 0:00:04.9]} 50... Qb7+ {[%clk 0:00:18.9]} 51. Kxe6 {[%clk
0:00:04.1]} 51... Qc6+ {[%clk 0:00:19.2]} 52. Kf7 {[%clk 0:00:03.9]} 52... Qd7+
{[%clk 0:00:18.9]} 53. Qe7 {[%clk 0:00:04.2]} 53... Qf5+ {[%clk 0:00:19]} 54.
Qf6 {[%clk 0:00:04.3]} 54... Qd7+ {[%clk 0:00:19.1]} 55. Kg8 {[%clk 0:00:03.7]}
55... Qe8+ {[%clk 0:00:19]} 56. Qf8+ {[%clk 0:00:03.8]} 56... Qxf8+ {[%clk
0:00:17.9]} 57. Kxf8 {[%clk 0:00:04.7]} 57... g5 {[%clk 0:00:18.4]} 58. e6
{[%clk 0:00:05]} 58... g4 {[%clk 0:00:18.7]} 59. e7 {[%clk 0:00:05.7]} 59... g3
{[%clk 0:00:19.4]} 60. e8=Q {[%clk 0:00:06.3]} 60... g2 {[%clk 0:00:19.7]} 61.
Qe1 {[%clk 0:00:06.9]} 61... Kh5 {[%clk 0:00:19.5]} 62. Qg1 {[%clk 0:00:07.4]}
62... Kg4 {[%clk 0:00:20.1]} 63. Qxg2+ {[%clk 0:00:08.2]} 63... Kh4 {[%clk
0:00:19.6]} 64. Qh2+ {[%clk 0:00:08.7]} 64... Kg4 {[%clk 0:00:19.2]} 65. Qxh7
{[%clk 0:00:09.6]} 65... Kf3 {[%clk 0:00:19.9]} 66. Qxa7 {[%clk 0:00:09.7]}
66... Ke3 {[%clk 0:00:20.8]} 67. Qxb6+ {[%clk 0:00:09.7]} 67... Kd3 {[%clk
0:00:21.7]} 68. Qc5 {[%clk 0:00:09.4]} 68... Kc2 {[%clk 0:00:21.7]} 69. a5
{[%clk 0:00:10]} 69... Kb3 {[%clk 0:00:22.6]} 70. a6 {[%clk 0:00:10.5]} 70...
Ka2 {[%clk 0:00:23.5]} 71. a7 {[%clk 0:00:11]} 71... Kb1 {[%clk 0:00:24.4]} 72.
a8=Q {[%clk 0:00:11.3]} 72... Kc1 {[%clk 0:00:24.8]} 73. Qa2 {[%clk 0:00:10.4]}
73... Kd1 {[%clk 0:00:24.7]} 74. Qg1# {[%clk 0:00:10]} 1-0

[Event "Betsys MČR v online bleskovém šachu 2021"]
[Site "Chess.com"]
[Date "2021.04.17"]
[Round "8"]
[White "malviny"]
[Black "TTCZ"]
[Result "1/2-1/2"]
[WhiteElo "1168"]
[BlackElo "1453"]
[TimeControl "180+1"]
[EndTime "10:22:35 PDT"]
[Termination "Remíza patem"]

1. e4 {[%clk 0:03:00.9]} 1... e6 {[%clk 0:02:57.5]} 2. Nf3 {[%clk 0:03:01.1]}
2... d5 {[%clk 0:02:58.2]} 3. exd5 {[%clk 0:03:00.3]} 3... exd5 {[%clk
0:02:57.3]} 4. d4 {[%clk 0:03:00.5]} 4... Nf6 {[%clk 0:02:55.6]} 5. Nc3 {[%clk
0:03:00.4]} 5... Bb4 {[%clk 0:02:52.9]} 6. Bd2 {[%clk 0:02:59.7]} 6... c6 {[%clk
0:02:52.1]} 7. Bd3 {[%clk 0:02:58.2]} 7... Be6 {[%clk 0:02:49.2]} 8. O-O {[%clk
0:02:57.2]} 8... h6 {[%clk 0:02:48.9]} 9. Ne5 {[%clk 0:02:55.2]} 9... O-O {[%clk
0:02:46.1]} 10. Qf3 {[%clk 0:02:45.6]} 10... Nbd7 {[%clk 0:02:44.5]} 11. a3
{[%clk 0:02:43.7]} 11... Bd6 {[%clk 0:02:33.8]} 12. b4 {[%clk 0:02:32.4]} 12...
Bxe5 {[%clk 0:02:14.8]} 13. dxe5 {[%clk 0:02:29.4]} 13... Nxe5 {[%clk
0:02:15.7]} 14. Qg3 {[%clk 0:02:23.5]} 14... Nxd3 {[%clk 0:01:32.6]} 15. Bxh6
{[%clk 0:02:22.2]} 15... Nh5 {[%clk 0:01:21.8]} 16. Qg5 {[%clk 0:02:17]} 16...
Qxg5 {[%clk 0:01:09.1]} 17. Bxg5 {[%clk 0:02:16]} 17... Nb2 {[%clk 0:00:59.4]}
18. Ne2 {[%clk 0:02:06.6]} 18... Nc4 {[%clk 0:00:55]} 19. h3 {[%clk 0:02:05.2]}
19... g6 {[%clk 0:00:50.4]} 20. g4 {[%clk 0:02:04.2]} 20... Ng7 {[%clk
0:00:50.2]} 21. Bf6 {[%clk 0:01:59.4]} 21... Nd2 {[%clk 0:00:47.1]} 22. Rfd1
{[%clk 0:01:56.4]} 22... Ne4 {[%clk 0:00:42]} 23. Be5 {[%clk 0:01:52]} 23...
Rfe8 {[%clk 0:00:35]} 24. f3 {[%clk 0:01:51.5]} 24... f6 {[%clk 0:00:26.1]} 25.
Bd4 {[%clk 0:01:46.6]} 25... Nd6 {[%clk 0:00:19.6]} 26. Bxf6 {[%clk 0:01:43.7]}
26... Kf7 {[%clk 0:00:19.7]} 27. Be5 {[%clk 0:01:34.6]} 27... Rad8 {[%clk
0:00:16.2]} 28. Nf4 {[%clk 0:01:31.1]} 28... Re7 {[%clk 0:00:12.8]} 29. Re1
{[%clk 0:01:26.8]} 29... Nb5 {[%clk 0:00:11]} 30. Bb2 {[%clk 0:01:24.2]} 30...
d4 {[%clk 0:00:10.8]} 31. a4 {[%clk 0:01:23.7]} 31... Nc3 {[%clk 0:00:09.2]} 32.
Bxc3 {[%clk 0:01:22.3]} 32... dxc3 {[%clk 0:00:10.1]} 33. Nxe6 {[%clk
0:01:20.9]} 33... Nxe6 {[%clk 0:00:09.9]} 34. Re3 {[%clk 0:01:20.5]} 34... Rd2
{[%clk 0:00:08.7]} 35. Rxc3 {[%clk 0:01:19.1]} 35... Nd4 {[%clk 0:00:08.6]} 36.
Rf1 {[%clk 0:01:13.8]} 36... Rxc2 {[%clk 0:00:07.6]} 37. Rd3 {[%clk 0:01:11.6]}
37... Ne6 {[%clk 0:00:06.3]} 38. Rdd1 {[%clk 0:01:10]} 38... Re2 {[%clk
0:00:05.7]} 39. Rf2 {[%clk 0:01:10]} 39... Rxf2 {[%clk 0:00:05]} 40. Kxf2 {[%clk
0:01:10.2]} 40... Kf6 {[%clk 0:00:05.3]} 41. Re1 {[%clk 0:01:10.2]} 41... g5
{[%clk 0:00:05.2]} 42. Kg3 {[%clk 0:01:09.9]} 42... Nf4 {[%clk 0:00:05.2]} 43.
Re4 {[%clk 0:01:08.1]} 43... Rxe4 {[%clk 0:00:04]} 44. fxe4 {[%clk 0:01:07.8]}
44... Ke5 {[%clk 0:00:03.5]} 45. Kf3 {[%clk 0:01:07.6]} 45... Nd3 {[%clk
0:00:01.5]} 46. b5 {[%clk 0:01:03.4]} 46... cxb5 {[%clk 0:00:01.6]} 47. axb5
{[%clk 0:01:01.3]} 47... b6 {[%clk 0:00:02.5]} 48. Ke3 {[%clk 0:01:00.8]} 48...
Nc5 {[%clk 0:00:02.6]} 49. Kf3 {[%clk 0:00:58.2]} 49... Nxe4 {[%clk 0:00:02.7]}
50. h4 {[%clk 0:00:58]} 50... gxh4 {[%clk 0:00:02.3]} 51. g5 {[%clk 0:00:56.8]}
51... Nxg5+ {[%clk 0:00:02.5]} 52. Kg4 {[%clk 0:00:57]} 52... Kf6 {[%clk
0:00:02.4]} 53. Kxh4 {[%clk 0:00:56.9]} 53... Ne4 {[%clk 0:00:02.6]} 54. Kg4
{[%clk 0:00:57]} 54... Nc3 {[%clk 0:00:03]} 55. Kf3 {[%clk 0:00:57.5]} 55...
Nxb5 {[%clk 0:00:03.3]} 56. Ke3 {[%clk 0:00:57.9]} 56... Ke6 {[%clk 0:00:04]}
57. Kd3 {[%clk 0:00:58.3]} 57... Kd6 {[%clk 0:00:04.9]} 58. Kc4 {[%clk
0:00:58.5]} 58... Kc6 {[%clk 0:00:05.8]} 59. Kb4 {[%clk 0:00:58.7]} 59... a6
{[%clk 0:00:06.2]} 60. Ka4 {[%clk 0:00:58.3]} 60... Kc5 {[%clk 0:00:06]} 61. Kb3
{[%clk 0:00:56.8]} 61... a5 {[%clk 0:00:06.2]} 62. Kc2 {[%clk 0:00:56.4]} 62...
Nd4+ {[%clk 0:00:06.7]} 63. Kd3 {[%clk 0:00:56.3]} 63... b5 {[%clk 0:00:07.6]}
64. Kc3 {[%clk 0:00:55.8]} 64... a4 {[%clk 0:00:07.4]} 65. Kb2 {[%clk
0:00:55.6]} 65... Kc4 {[%clk 0:00:07.5]} 66. Ka3 {[%clk 0:00:55.1]} 66... Nc2+
{[%clk 0:00:05.7]} 67. Kb2 {[%clk 0:00:54.8]} 67... Nb4 {[%clk 0:00:05.6]} 68.
Ka3 {[%clk 0:00:54.6]} 68... Kc5 {[%clk 0:00:05.8]} 69. Kb2 {[%clk 0:00:53.7]}
69... Kb6 {[%clk 0:00:05.9]} 70. Ka3 {[%clk 0:00:53.7]} 70... Ka5 {[%clk
0:00:06.8]} 71. Kb2 {[%clk 0:00:53.5]} 71... Nd5 {[%clk 0:00:06.5]} 72. Ka3
{[%clk 0:00:53.4]} 72... b4+ {[%clk 0:00:06.6]} 73. Kb2 {[%clk 0:00:52.7]} 73...
a3+ {[%clk 0:00:06.5]} 74. Kb3 {[%clk 0:00:52.7]} 74... Nc3 {[%clk 0:00:06.2]}
75. Kc2 {[%clk 0:00:48.5]} 75... Ka4 {[%clk 0:00:07.1]} 76. Kc1 {[%clk
0:00:47.2]} 76... a2 {[%clk 0:00:07.2]} 77. Kb2 {[%clk 0:00:47]} 77... b3 {[%clk
0:00:05.6]} 78. Ka1 {[%clk 0:00:45.2]} 78... Kb4 {[%clk 0:00:04.9]} 79. Kb2
{[%clk 0:00:45.2]} 79... Na4+ {[%clk 0:00:04.8]} 80. Ka1 {[%clk 0:00:44.5]}
80... Kc4 {[%clk 0:00:03.7]} 1/2-1/2

[Event "Betsys MČR v online bleskovém šachu 2021"]
[Site "Chess.com"]
[Date "2021.04.17"]
[Round "8"]
[White "sipos88"]
[Black "phil3"]
[Result "1/2-1/2"]
[WhiteElo "1877"]
[BlackElo "2132"]
[TimeControl "180+1"]
[EndTime "10:22:38 PDT"]
[Termination "Remíza dohodou"]

1. e4 {[%clk 0:03:00.9]} 1... e5 {[%clk 0:03:00.2]} 2. Bc4 {[%clk 0:03:00.3]}
2... Nf6 {[%clk 0:03:00.5]} 3. Nc3 {[%clk 0:02:59.8]} 3... Nxe4 {[%clk 0:03:00]}
4. Nxe4 {[%clk 0:02:55.1]} 4... d5 {[%clk 0:02:59.5]} 5. Bxd5 {[%clk 0:02:50.7]}
5... Qxd5 {[%clk 0:02:59.4]} 6. f3 {[%clk 0:02:48.4]} 6... Bf5 {[%clk
0:02:35.2]} 7. d3 {[%clk 0:02:46]} 7... Nc6 {[%clk 0:02:31.5]} 8. Be3 {[%clk
0:02:41.5]} 8... Bg6 {[%clk 0:02:27.1]} 9. Ne2 {[%clk 0:02:40.6]} 9... f5 {[%clk
0:02:26.1]} 10. N4c3 {[%clk 0:02:39.4]} 10... Qd7 {[%clk 0:02:19.8]} 11. Qd2
{[%clk 0:02:32.4]} 11... O-O-O {[%clk 0:02:15.5]} 12. O-O-O {[%clk 0:02:32.2]}
12... Bf7 {[%clk 0:02:13]} 13. f4 {[%clk 0:02:28.3]} 13... exf4 {[%clk
0:01:53.8]} 14. Nxf4 {[%clk 0:02:18.9]} 14... Nb4 {[%clk 0:01:53]} 15. a3 {[%clk
0:02:14.4]} 15... Nc6 {[%clk 0:01:51.5]} 16. Qf2 {[%clk 0:02:09.4]} 16... a6
{[%clk 0:01:44]} 17. Rhe1 {[%clk 0:02:00.9]} 17... g5 {[%clk 0:01:37.1]} 18.
Nfe2 {[%clk 0:01:57]} 18... f4 {[%clk 0:01:36.9]} 19. Bc5 {[%clk 0:01:53.2]}
19... Bg7 {[%clk 0:01:32.4]} 20. g3 {[%clk 0:01:48.6]} 20... fxg3 {[%clk
0:01:21.4]} 21. Qxg3 {[%clk 0:01:41.4]} 21... h6 {[%clk 0:01:13.1]} 22. Ne4
{[%clk 0:01:34.6]} 22... Rhe8 {[%clk 0:01:02.2]} 23. Rf1 {[%clk 0:01:25.5]}
23... Bg6 {[%clk 0:01:00.1]} 24. N2c3 {[%clk 0:01:23]} 24... Nd4 {[%clk
0:00:56.1]} 25. Nd2 {[%clk 0:01:00.8]} 25... Qc6 {[%clk 0:00:27.5]} 26. Bxd4
{[%clk 0:00:44.5]} 26... Bxd4 {[%clk 0:00:25.7]} 27. Rde1 {[%clk 0:00:32.5]}
27... Bxc3 {[%clk 0:00:23.6]} 28. bxc3 {[%clk 0:00:32.1]} 28... Qxc3 {[%clk
0:00:21.8]} 29. Rxe8 {[%clk 0:00:26.6]} 29... Rxe8 {[%clk 0:00:19.5]} 30. Qg4+
{[%clk 0:00:23.1]} 30... Kb8 {[%clk 0:00:16.7]} 31. Qb4 {[%clk 0:00:23.4]} 31...
Qxb4 {[%clk 0:00:14.3]} 32. axb4 {[%clk 0:00:23.4]} 32... Re2 {[%clk 0:00:14.4]}
33. Rf6 {[%clk 0:00:23.3]} 33... Re1+ {[%clk 0:00:06.1]} 34. Kb2 {[%clk
0:00:23]} 34... Re2 {[%clk 0:00:06.5]} 35. Rxg6 {[%clk 0:00:23.1]} 35... Rxd2
{[%clk 0:00:06.7]} 36. Rxh6 {[%clk 0:00:23.8]} 36... Rg2 {[%clk 0:00:05.6]} 37.
Kc3 {[%clk 0:00:23.8]} 37... Ka8 {[%clk 0:00:05.9]} 38. d4 {[%clk 0:00:23.4]}
38... Ka7 {[%clk 0:00:06.3]} 39. Kd3 {[%clk 0:00:23.9]} 39... a5 {[%clk
0:00:05]} 40. bxa5 {[%clk 0:00:23.7]} 40... Rg4 {[%clk 0:00:04.5]} 41. c4 {[%clk
0:00:23.2]} 41... Rg2 {[%clk 0:00:04.4]} 42. Ke4 {[%clk 0:00:23.1]} 42... Re2+
{[%clk 0:00:04]} 43. Kd5 {[%clk 0:00:22.3]} 43... Ra2 {[%clk 0:00:03.7]} 44. c5
{[%clk 0:00:21.6]} 44... Rxa5 {[%clk 0:00:03.8]} 45. Rh5 {[%clk 0:00:21.8]}
45... Ra2 {[%clk 0:00:03.9]} 46. Ke6 {[%clk 0:00:21.6]} 46... Rg2 {[%clk
0:00:03.5]} 47. d5 {[%clk 0:00:20.8]} 47... Re2+ {[%clk 0:00:02.5]} 48. Kd7
{[%clk 0:00:21.2]} 48... Rd2 {[%clk 0:00:02.5]} 49. d6 {[%clk 0:00:21]} 49...
cxd6 {[%clk 0:00:02.8]} 50. cxd6 {[%clk 0:00:21.5]} 50... b5 {[%clk 0:00:03.1]}
51. Rxg5 {[%clk 0:00:21.6]} 51... Kb6 {[%clk 0:00:03.2]} 52. h4 {[%clk
0:00:20.8]} 52... b4 {[%clk 0:00:03.3]} 53. h5 {[%clk 0:00:21.2]} 53... b3
{[%clk 0:00:03.7]} 54. Rg3 {[%clk 0:00:18.5]} 54... b2 {[%clk 0:00:02.9]} 55.
Rb3+ {[%clk 0:00:18.7]} 55... Kc5 {[%clk 0:00:03.3]} 56. h6 {[%clk 0:00:19.1]}
56... Rxd6+ {[%clk 0:00:02.6]} 57. Ke7 {[%clk 0:00:19.3]} 57... Rxh6 {[%clk
0:00:02.7]} 58. Rxb2 {[%clk 0:00:19.9]} 58... Rh7+ {[%clk 0:00:03.1]} 59. Kf6
{[%clk 0:00:19.8]} 59... Rh3 {[%clk 0:00:03]} 60. Ke5 {[%clk 0:00:19.8]} 60...
Rh5+ {[%clk 0:00:02.6]} 61. Ke6 {[%clk 0:00:20]} 61... Rh6+ {[%clk 0:00:03]} 62.
Ke5 {[%clk 0:00:19.9]} 62... Rh5+ {[%clk 0:00:03.6]} 63. Kf4 {[%clk 0:00:20.5]}
63... Rh8 {[%clk 0:00:02.9]} 64. Rc2+ {[%clk 0:00:20.3]} 64... Kd4 {[%clk
0:00:03.2]} 65. Rd2+ {[%clk 0:00:20]} 65... Kc3 {[%clk 0:00:03.8]} 66. Rd7
{[%clk 0:00:19.6]} 66... Rf8+ {[%clk 0:00:03.9]} 67. Ke5 {[%clk 0:00:20]} 67...
Re8+ {[%clk 0:00:04]} 68. Kf4 {[%clk 0:00:19.1]} 68... Rf8+ {[%clk 0:00:04.5]}
69. Ke5 {[%clk 0:00:19.5]} 1/2-1/2

[Event "Betsys MČR v online bleskovém šachu 2021"]
[Site "Chess.com"]
[Date "2021.04.17"]
[Round "8"]
[White "Koli05"]
[Black "ghostdog777"]
[Result "0-1"]
[WhiteElo "1840"]
[BlackElo "2138"]
[TimeControl "180+1"]
[EndTime "10:22:38 PDT"]
[Termination "Uživatel ghostdog777 zvítězil na čas"]

1. d4 {[%clk 0:03:00.9]} 1... d5 {[%clk 0:02:51.3]} 2. c4 {[%clk 0:03:00.4]}
2... c6 {[%clk 0:02:51.1]} 3. cxd5 {[%clk 0:02:59.4]} 3... cxd5 {[%clk
0:02:50.4]} 4. Bf4 {[%clk 0:02:59.4]} 4... Nc6 {[%clk 0:02:49.6]} 5. e3 {[%clk
0:02:59.1]} 5... Qb6 {[%clk 0:02:47.4]} 6. Qb3 {[%clk 0:02:53.7]} 6... Qxb3
{[%clk 0:02:46.9]} 7. axb3 {[%clk 0:02:53.2]} 7... f6 {[%clk 0:02:44.1]} 8. Nf3
{[%clk 0:02:51.4]} 8... g5 {[%clk 0:02:43.5]} 9. Bg3 {[%clk 0:02:50.5]} 9... e6
{[%clk 0:02:41.7]} 10. Nc3 {[%clk 0:02:49.2]} 10... Bd7 {[%clk 0:02:36.3]} 11.
Nb5 {[%clk 0:02:47.5]} 11... Rc8 {[%clk 0:02:34.3]} 12. Nd6+ {[%clk 0:02:38.2]}
12... Bxd6 {[%clk 0:02:32.9]} 13. Bxd6 {[%clk 0:02:37.1]} 13... Nge7 {[%clk
0:02:33.6]} 14. Bd3 {[%clk 0:02:30]} 14... Nf5 {[%clk 0:02:32.2]} 15. Bxf5
{[%clk 0:02:27.9]} 15... exf5 {[%clk 0:02:32]} 16. O-O {[%clk 0:02:26.4]} 16...
Be6 {[%clk 0:02:24.2]} 17. Ne1 {[%clk 0:02:23.7]} 17... Kd7 {[%clk 0:02:13]} 18.
Bc5 {[%clk 0:02:20.6]} 18... b6 {[%clk 0:02:11]} 19. Ba3 {[%clk 0:02:19.4]}
19... Na5 {[%clk 0:02:10.4]} 20. b4 {[%clk 0:01:59.6]} 20... Nb3 {[%clk
0:01:58.5]} 21. Rd1 {[%clk 0:01:55.8]} 21... Rc7 {[%clk 0:01:09.1]} 22. Nd3
{[%clk 0:01:34.7]} 22... Rhc8 {[%clk 0:01:02.9]} 23. h3 {[%clk 0:01:27.7]} 23...
Kc6 {[%clk 0:00:59.1]} 24. f4 {[%clk 0:01:15.7]} 24... h6 {[%clk 0:00:55.7]} 25.
fxg5 {[%clk 0:01:07.6]} 25... hxg5 {[%clk 0:00:55.2]} 26. g4 {[%clk 0:00:49.7]}
26... Kb5 {[%clk 0:00:33.2]} 27. gxf5 {[%clk 0:00:48.2]} 27... Bf7 {[%clk
0:00:32.3]} 28. Nf2 {[%clk 0:00:39.5]} 28... Bh5 {[%clk 0:00:19]} 29. Ng4 {[%clk
0:00:38.8]} 29... Rc6 {[%clk 0:00:17.7]} 30. Kg2 {[%clk 0:00:32.9]} 30... Re8
{[%clk 0:00:15.6]} 31. Rde1 {[%clk 0:00:28.7]} 31... Rc2+ {[%clk 0:00:14.7]} 32.
Rf2 {[%clk 0:00:28.1]} 32... Rxf2+ {[%clk 0:00:12.4]} 33. Nxf2 {[%clk
0:00:27.5]} 33... Nd2 {[%clk 0:00:12.7]} 34. Re2 {[%clk 0:00:26.1]} 34... Ne4
{[%clk 0:00:09.9]} 35. Re1 {[%clk 0:00:24.7]} 35... Rc8 {[%clk 0:00:08.3]} 36.
Nxe4 {[%clk 0:00:22.6]} 36... dxe4 {[%clk 0:00:07.9]} 37. Rf1 {[%clk 0:00:22.4]}
37... Bf3+ {[%clk 0:00:06.3]} 38. Kg3 {[%clk 0:00:21.9]} 38... Rc2 {[%clk
0:00:06.2]} 39. Rf2 {[%clk 0:00:21.6]} 39... Rc1 {[%clk 0:00:06.3]} 40. b3
{[%clk 0:00:17.2]} 40... Rg1+ {[%clk 0:00:04.2]} 41. Kh2 {[%clk 0:00:16.5]}
41... Rh1+ {[%clk 0:00:04]} 42. Kg3 {[%clk 0:00:16.5]} 42... Rg1+ {[%clk
0:00:04.6]} 43. Kh2 {[%clk 0:00:16.3]} 43... Re1 {[%clk 0:00:04.9]} 44. Kg3
{[%clk 0:00:13.1]} 44... Rxe3 {[%clk 0:00:04.7]} 45. Kh2 {[%clk 0:00:12]} 45...
Rxb3 {[%clk 0:00:04.5]} 46. Bc1 {[%clk 0:00:11.3]} 46... Rxb4 {[%clk 0:00:04.4]}
47. Bxg5 {[%clk 0:00:10.8]} 47... fxg5 {[%clk 0:00:03.8]} 48. Rxf3 {[%clk
0:00:10.4]} 48... exf3 {[%clk 0:00:03.3]} 49. f6 {[%clk 0:00:10.6]} 49... Rxd4
{[%clk 0:00:04.1]} 50. f7 {[%clk 0:00:10.3]} 50... Rf4 {[%clk 0:00:05]} 51. Kg3
{[%clk 0:00:10.6]} 51... Rxf7 {[%clk 0:00:04.4]} 52. Kf2 {[%clk 0:00:11.5]}
52... Kc4 {[%clk 0:00:04.6]} 53. Kf1 {[%clk 0:00:07.5]} 53... f2 {[%clk
0:00:05.5]} 54. h4 {[%clk 0:00:07.5]} 54... Kd4 {[%clk 0:00:06.4]} 55. hxg5
{[%clk 0:00:06.4]} 55... Ke3 {[%clk 0:00:07]} 56. g6 {[%clk 0:00:06.3]} 56...
Rd7 {[%clk 0:00:06.3]} 57. g7 {[%clk 0:00:04.8]} 57... Rd1+ {[%clk 0:00:07.2]}
58. Kg2 {[%clk 0:00:03.9]} 58... Rg1+ {[%clk 0:00:08.1]} 59. Kh2 {[%clk
0:00:01.9]} 59... Rxg7 {[%clk 0:00:09]} 60. Kh3 {[%clk 0:00:01.5]} 60... f1=Q+
{[%clk 0:00:09.9]} 61. Kh4 {[%clk 0:00:01.1]} 61... Qh3+ {[%clk 0:00:10.8]} 0-1